bitfinex-derivatives/quotes_BTCF0:USTF0_20251230
["timestamp","ask_amount","ask_price","bid_price","bid_amount"]
[1767060550391,0.024735,87252.0,87236.0,0.00017188]
[1767060550694,0.024735,87251.0,87236.0,0.00017188]
[1767060550892,0.024735,87250.0,87236.0,0.00017188]
[1767060551092,0.00017188,87254.0,87236.0,0.00017188]
[1767060551288,0.02474058,87253.0,87236.0,0.00017188]
[1767060551494,0.02474058,87252.0,87236.0,0.00017188]
[1767060551696,0.02474058,87251.0,87237.0,0.0114764]
[1767060551894,0.02474058,87250.0,87237.0,0.0114764]
[1767060552097,0.04415,87250.0,87237.0,0.0114764]
[1767060552690,0.04415,87250.0,87236.0,0.00017188]
[1767060552896,0.02474532,87249.0,87236.0,0.00017188]
[1767060553198,0.04415,87250.0,87236.0,0.00017188]
[1767060553493,0.02475001,87249.0,87236.0,0.00017188]
[1767060553683,0.04415,87250.0,87236.0,0.00017188]
[1767060553879,0.02475001,87249.0,87236.0,0.00017188]
[1767060554081,0.04415,87250.0,87236.0,0.00017188]
[1767060554281,0.02475002,87249.0,87236.0,0.00017188]
[1767060554485,0.02475002,87248.0,87236.0,0.00017188]
[1767060554683,0.04415,87250.0,87236.0,0.00017188]
[1767060554881,0.02475626,87249.0,87236.0,0.00017188]
[1767060555097,0.02475626,87248.0,87236.0,0.00017188]
[1767060555298,0.02475626,87247.0,87236.0,0.00017188]
[1767060555499,0.04415,87250.0,87236.0,0.00017188]
[1767060555791,0.02476476,87249.0,87236.0,0.00017188]
[1767060555993,0.02476476,87248.0,87236.0,0.00017188]
[1767060556196,0.02476476,87247.0,87236.0,0.00017188]
[1767060556399,0.02476476,87246.0,87236.0,0.00017188]
[1767060556589,0.04415,87250.0,87236.0,0.00017188]
[1767060556791,0.024781,87249.0,87236.0,0.00017188]
[1767060556984,0.024781,87248.0,87236.0,0.00017188]
[1767060557283,0.024781,87247.0,87236.0,0.00017188]
[1767060557486,0.024781,87246.0,87236.0,0.00017188]
[1767060557682,0.024781,87245.0,87236.0,0.00017188]
[1767060557897,0.04415,87250.0,87236.0,0.00017188]
[1767060558094,0.0247868,87249.0,87236.0,0.00017188]
[1767060558292,0.0247868,87248.0,87236.0,0.00017188]
[1767060558498,0.0247868,87247.0,87236.0,0.00017188]
[1767060558701,0.04415,87250.0,87236.0,0.00017188]
[1767060558702,0.0247868,87246.0,87236.0,0.00017188]
[1767060558891,0.0247868,87245.0,87236.0,0.00017188]
[1767060559092,0.04415,87250.0,87236.0,0.00017188]
[1767060559289,0.02478679,87249.0,87236.0,0.00017188]
[1767060559493,0.02478679,87248.0,87236.0,0.00017188]
[1767060559701,0.02478679,87247.0,87236.0,0.00017188]
[1767060559999,0.02478679,87246.0,87236.0,0.00017188]
[1767060560202,0.02478679,87245.0,87236.0,0.00017188]
[1767060560403,0.04415,87250.0,87236.0,0.00017188]
[1767060560601,0.02478671,87249.0,87236.0,0.00017188]
[1767060560802,0.02478671,87248.0,87236.0,0.00017188]
[1767060561099,0.02478671,87247.0,87236.0,0.00017188]
[1767060561300,0.02478671,87246.0,87236.0,0.00017188]
[1767060561602,0.02478671,87245.0,87236.0,0.00017188]
[1767060561795,0.04415,87250.0,87236.0,0.00017188]
[1767060561993,0.02478665,87249.0,87236.0,0.00017188]
[1767060562203,0.02478665,87248.0,87236.0,0.00017188]
[1767060562393,0.02478665,87247.0,87236.0,0.00017188]
[1767060562596,0.02478665,87246.0,87236.0,0.00017188]
[1767060562797,0.02478665,87245.0,87236.0,0.00017188]
[1767060562998,0.04415,87250.0,87236.0,0.00017188]
[1767060563196,0.02478654,87249.0,87236.0,0.00017188]
[1767060563502,0.02478654,87248.0,87236.0,0.00017188]
[1767060563701,0.02478654,87247.0,87236.0,0.00017188]
[1767060563899,0.02478654,87246.0,87236.0,0.00017188]
[1767060564094,0.02478654,87245.0,87236.0,0.00017188]
[1767060564302,0.04415,87250.0,87236.0,0.00017188]
[1767060564303,0.04415,87250.0,87237.0,0.0114765]
[1767060564508,0.02478646,87249.0,87237.0,0.0114765]
[1767060564696,0.02478646,87248.0,87237.0,0.0114765]
[1767060564896,0.02478646,87247.0,87237.0,0.0114765]
[1767060565096,0.04415,87250.0,87237.0,0.0114765]
[1767060565297,0.0247635,87249.0,87237.0,0.0114765]
[1767060565492,0.0247635,87248.0,87237.0,0.0114765]
[1767060565805,0.0247635,87247.0,87237.0,0.0114765]
[1767060566006,0.04415,87250.0,87237.0,0.0114765]
[1767060566207,0.02476357,87249.0,87237.0,0.0114765]
[1767060566506,0.02476357,87248.0,87237.0,0.0114765]
[1767060566706,0.02476357,87247.0,87237.0,0.0114765]
[1767060566903,0.04415,87250.0,87237.0,0.0114765]
[1767060567096,0.02476335,87249.0,87237.0,0.0114765]
[1767060567296,0.02476335,87248.0,87236.0,0.00017188]
[1767060567497,0.04415,87250.0,87227.0,0.06190639]
[1767060567498,0.02476335,87247.0,87227.0,0.0114778]
[1767060567806,0.02476335,87246.0,87229.0,0.0114775]
[1767060568003,0.02476335,87245.0,87229.0,0.0114775]
[1767060568205,0.02476335,87244.0,87229.0,0.0114775]
[1767060568400,0.04415,87250.0,87229.0,0.0114775]
[1767060568598,0.02475693,87249.0,87229.0,0.0114775]
[1767060568799,0.02475693,87248.0,87229.0,0.0114775]
[1767060569097,0.02475693,87247.0,87229.0,0.0114775]
[1767060569405,0.02475693,87246.0,87229.0,0.0114775]
[1767060569607,0.02475693,87245.0,87229.0,0.0114775]
[1767060569805,0.02475693,87244.0,87229.0,0.0114775]
[1767060570011,0.05744,87245.0,87229.0,0.0114775]
[1767060570309,0.02475338,87244.0,87229.0,0.0114775]
[1767060570511,0.05744,87245.0,87229.0,0.0114775]
[1767060570721,0.02475115,87244.0,87229.0,0.0114775]
[1767060570906,0.05744,87245.0,87229.0,0.0114775]
[1767060571203,0.02475115,87244.0,87229.0,0.0114775]
[1767060571412,0.05744,87245.0,87229.0,0.0114775]
[1767060571706,0.0247493,87244.0,87229.0,0.0114775]
[1767060571913,0.05744,87245.0,87229.0,0.0114775]
[1767060572112,0.0247493,87244.0,87229.0,0.0114775]
[1767060572410,0.05744,87245.0,87229.0,0.0114775]
[1767060572606,0.02474779,87244.0,87228.0,0.01243188]
[1767060572909,0.05744,87245.0,87228.0,0.01243188]
[1767060573109,0.02474779,87244.0,87228.0,0.01243188]
[1767060573312,0.05744,87245.0,87228.0,0.02390948]
[1767060573510,0.02474643,87244.0,87228.0,0.02390948]
[1767060573817,0.05744,87245.0,87228.0,0.02390948]
[1767060574013,0.02474645,87244.0,87228.0,0.02390948]
[1767060574318,0.05744,87245.0,87228.0,0.02390948]
[1767060577013,0.02474351,87244.0,87228.0,0.02390948]
[1767060577210,0.05744,87245.0,87228.0,0.02390948]
[1767060577418,0.02474281,87244.0,87228.0,0.02390948]
[1767060577715,0.02474281,87243.0,87228.0,0.02390948]
[1767060577927,0.05744,87245.0,87228.0,0.02390948]
[1767060578214,0.0247428,87244.0,87228.0,0.02390948]
[1767060578520,0.0247428,87243.0,87228.0,0.02390948]
[1767060578814,0.05744,87245.0,87228.0,0.01243188]
[1767060579118,0.02474239,87244.0,87228.0,0.01243188]
[1767060579415,0.05744,87245.0,87228.0,0.01243188]
[1767060579613,0.02474206,87244.0,87228.0,0.01243188]
[1767060579815,0.05744,87245.0,87228.0,0.01243188]
[1767060580004,0.02474204,87244.0,87228.0,0.01243188]
[1767060580314,0.02474204,87243.0,87228.0,0.01243188]
[1767060580510,0.05744,87245.0,87228.0,0.01243188]
[1767060580702,0.02474177,87244.0,87228.0,0.01243188]
[1767060580899,0.02474177,87243.0,87228.0,0.01243188]
[1767060581205,0.05744,87245.0,87228.0,0.01243188]
[1767060581411,0.0247415,87244.0,87228.0,0.01243188]
[1767060581607,0.0247415,87243.0,87228.0,0.01243188]
[1767060581913,0.05744,87245.0,87228.0,0.01243188]
[1767060582115,0.02474155,87244.0,87228.0,0.01243188]
[1767060582310,0.02474155,87243.0,87228.0,0.00017188]
[1767060582515,0.05744,87245.0,87228.0,0.00017188]
[1767060582815,0.02474154,87244.0,87228.0,0.00017188]
[1767060583114,0.02474154,87243.0,87228.0,0.00017188]
[1767060583305,0.05744,87245.0,87228.0,0.00017188]
[1767060583605,0.02474139,87244.0,87228.0,0.00017188]
[1767060583806,0.02474139,87243.0,87228.0,0.00017188]
[1767060584008,0.15640169,87240.0,87228.0,0.00017188]
[1767060584917,0.02474428,87239.0,87228.0,0.00017188]
[1767060585119,0.02474428,87238.0,87228.0,0.00017188]
[1767060585413,0.02474428,87237.0,87228.0,0.00017188]
[1767060585715,0.02474428,87236.0,87228.0,0.00017188]
[1767060585912,0.01149964,87243.0,87228.0,0.00017188]
[1767060586109,0.15640169,87240.0,87228.0,0.00017188]
[1767060586414,0.15640169,87240.0,87207.0,0.05744]
[1767060586415,0.0114767,87236.0,87207.0,0.05744]
[1767060586615,0.15640169,87230.0,87207.0,0.05744]
[1767060586815,0.15640169,87220.0,87207.0,0.05744]
[1767060587007,0.02474443,87219.0,87207.0,0.05744]
[1767060587315,0.02474443,87218.0,87208.0,0.0114803]
[1767060587521,0.15640169,87220.0,87205.0,0.05744]
[1767060587819,0.02472131,87219.0,87206.0,0.0114806]
[1767060588022,0.02472131,87218.0,87206.0,0.0114806]
[1767060588318,0.15640169,87220.0,87206.0,0.0114806]
[1767060588514,0.02471122,87219.0,87205.0,0.05744]
[1767060588812,0.15640169,87220.0,87205.0,0.05744]
[1767060589019,0.02471117,87219.0,87205.0,0.05744]
[1767060589321,0.15640169,87220.0,87205.0,0.05744]
[1767060590520,0.05744,87221.0,87205.0,0.05744]
[1767060590712,0.02469745,87220.0,87205.0,0.05744]
[1767060591012,0.05744,87221.0,87205.0,0.05744]
[1767060591212,0.02469745,87220.0,87205.0,0.05744]
[1767060591408,0.05744,87221.0,87205.0,0.05744]
[1767060591610,0.02469211,87220.0,87205.0,0.05744]
[1767060591914,0.0114793,87216.0,87197.0,0.04475276]
[1767060592116,0.05744,87221.0,87175.0,0.08252819]
[1767060592117,0.0114807,87206.0,87175.0,0.09756]
[1767060592310,0.15640169,87190.0,87176.0,0.05748]
[1767060592516,0.05748,87198.0,87176.0,0.05748]
[1767060592702,0.02465917,87197.0,87176.0,0.05748]
[1767060592904,0.00017198,87195.0,87178.0,0.00017198]
[1767060593106,0.02465917,87194.0,87178.0,0.00017198]
[1767060593317,0.00017198,87195.0,87178.0,0.00017198]
[1767060594213,0.0114829,87189.0,87160.0,0.0114866]
[1767060594414,0.15640169,87180.0,87160.0,0.0114866]
[1767060594613,0.15640169,87180.0,87161.0,0.15504]
[1767060594819,0.0689629,87189.0,87161.0,0.15504]
[1767060595318,9.85e-05,87188.0,87166.0,0.00011472]
[1767060596110,0.0114832,87186.0,87166.0,0.00011472]
[1767060598214,0.0114838,87182.0,87166.0,0.00011472]
[1767060598420,0.0114838,87182.0,87166.0,0.05759472]
[1767060598421,0.0114842,87179.0,87166.0,0.05759472]
[1767060599019,0.15640169,87180.0,87166.0,0.05759472]
[1767060599220,0.16788569,87180.0,87166.0,0.05759472]
[1767060600122,0.011484,87180.0,87166.0,0.05759472]
[1767060600420,0.16788569,87180.0,87166.0,0.05759472]
[1767060600817,0.05748,87182.0,87166.0,0.05759472]
[1767060601016,9.85e-05,87188.0,87166.0,0.05759472]
[1767060601208,0.05748,87187.0,87166.0,0.06908042]
[1767060601409,0.05748,87187.0,87170.0,0.15640169]
[1767060602019,0.05748,87187.0,87166.0,0.05759472]
[1767060602309,0.05748,87187.0,87170.0,0.15640169]
[1767060604822,9.85e-05,87188.0,87170.0,0.15640169]
[1767060605013,0.00017198,87195.0,87177.0,0.15640169]
[1767060605215,0.00017198,87195.0,87180.0,0.15640169]
[1767060605424,0.00017198,87195.0,87180.0,0.21392169]
[1767060605625,0.0114803,87209.0,87185.0,0.15640169]
[1767060605817,0.0114806,87207.0,87190.0,0.15640169]
[1767060606018,0.0114806,87207.0,87191.0,0.05752]
[1767060606827,0.05769198,87208.0,87191.0,0.05752]
[1767060607020,0.011481,87204.0,87191.0,0.05752]
[1767060607218,0.0114814,87200.0,87174.0,0.0114848]
[1767060607420,0.05769198,87208.0,87151.0,0.02853991]
[1767060607421,0.0114829,87189.0,87175.0,0.15512]
[1767060607730,0.15640169,87190.0,87175.0,0.05752]
[1767060608027,0.0114828,87189.0,87173.0,0.05752]
[1767060610521,0.15657367,87190.0,87173.0,0.05752]
[1767060610727,0.05832,87188.0,87173.0,0.05752]
[1767060616027,0.05832,87188.0,87178.0,0.15640169]
[1767060616225,0.05832,87188.0,87173.0,0.05752]
[1767060616829,0.0976,87196.0,87173.0,0.05752]
[1767060616830,0.0114811,87203.0,87174.0,0.0114847]
[1767060617018,0.17979321,87202.0,87180.0,0.15640169]
[1767060617224,0.02467321,87201.0,87181.0,0.05752]
[1767060617928,0.00017198,87200.0,87181.0,0.05752]
[1767060618235,0.00017198,87200.0,87181.0,0.0690038]
[1767060618534,0.02469648,87199.0,87181.0,0.0690038]
[1767060618736,0.00017198,87200.0,87181.0,0.0690038]
[1767060619038,0.0246964,87199.0,87181.0,0.0690038]
[1767060619235,0.02471132,87198.0,87181.0,0.05752]
[1767060619432,0.02471132,87197.0,87181.0,0.05752]
[1767060619628,0.03957,87198.0,87181.0,0.05752]
[1767060619828,0.02471144,87197.0,87181.0,0.05752]
[1767060620028,0.03957,87198.0,87181.0,0.05752]
[1767060620432,0.0247302,87197.0,87181.0,0.05752]
[1767060620737,0.0247302,87196.0,87181.0,0.05752]
[1767060620935,0.03957,87198.0,87181.0,0.05752]
[1767060621137,0.02473012,87197.0,87181.0,0.05752]
[1767060621432,0.02473012,87196.0,87182.0,0.0114837]
[1767060621737,0.02473012,87195.0,87182.0,0.0114837]
[1767060621926,0.02473012,87194.0,87185.0,0.0114833]
[1767060622125,0.03957,87198.0,87181.0,0.0690039]
[1767060622330,0.02475384,87197.0,87181.0,0.05752]
[1767060622837,0.02475384,87197.0,87182.0,0.01784835]
[1767060623033,0.02475384,87197.0,87183.0,0.01784835]
[1767060623238,0.02475384,87197.0,87184.0,0.01784835]
[1767060623429,0.02475384,87197.0,87185.0,0.01784835]
[1767060623630,0.02475384,87197.0,87186.0,0.01784835]
[1767060623830,0.02475384,87197.0,87187.0,0.01784835]
[1767060624030,0.02475384,87197.0,87188.0,0.01784835]
[1767060624229,0.02475384,87197.0,87189.0,0.01784835]
[1767060624432,0.02475384,87197.0,87190.0,0.01784835]
[1767060624735,0.02475384,87197.0,87191.0,0.01784835]
[1767060624935,0.02475384,87197.0,87181.0,0.05752]
[1767060631741,0.02475384,87197.0,87181.0,0.0690038]
[1767060631942,0.02475384,87197.0,87182.0,0.01792543]
[1767060632143,0.02475384,87197.0,87183.0,0.01792543]
[1767060632342,0.02475384,87197.0,87181.0,0.0690038]
[1767060632343,0.02475384,87197.0,87184.0,0.01792543]
[1767060632544,0.02475384,87197.0,87185.0,0.01792543]
[1767060632743,0.02475384,87197.0,87186.0,0.01792543]
[1767060632933,0.02475384,87197.0,87181.0,0.0690038]
[1767060632934,0.02475384,87197.0,87187.0,0.05752]
[1767060635734,0.02475384,87196.0,87187.0,0.05752]
[1767060635938,0.02475384,87195.0,87187.0,0.05752]
[1767060636140,0.02475384,87194.0,87187.0,0.05752]
[1767060636340,0.02475384,87193.0,87187.0,0.05752]
[1767060636649,0.02475384,87192.0,87187.0,0.05752]
[1767060636848,0.02475384,87191.0,87187.0,0.05752]
[1767060637052,0.02475384,87190.0,87187.0,0.05752]
[1767060637243,0.02475384,87189.0,87187.0,0.05752]
[1767060637444,0.02475384,87188.0,87187.0,0.05752]
[1767060637652,0.02475384,87188.0,87186.0,0.05752]
[1767060637851,0.02475384,87187.0,87186.0,0.05752]
[1767060638242,0.0114816,87199.0,87186.0,0.05752]
[1767060639556,0.0114825,87192.0,87180.0,0.15512]
[1767060639753,0.0114828,87189.0,87180.0,0.15512]
[1767060640056,0.0114828,87189.0,87181.0,0.05752]
[1767060640647,0.0114828,87189.0,87179.0,0.05752]
[1767060641152,0.0114833,87186.0,87178.0,0.05752]
[1767060641350,0.0114833,87186.0,87172.0,0.00011472]
[1767060641544,0.0114833,87186.0,87173.0,0.15512]
[1767060642652,0.0114837,87183.0,87173.0,0.05752]
[1767060642850,0.0114838,87182.0,87158.0,0.0114868]
[1767060643056,0.0976,87193.0,87158.0,0.0114868]
[1767060643057,0.0114836,87183.0,87159.0,0.07538955]
[1767060643245,0.0114836,87183.0,87160.0,0.01786955]
[1767060643558,0.0114836,87183.0,87161.0,0.01786955]
[1767060643747,0.0114836,87183.0,87162.0,0.01786955]
[1767060643948,0.00017208,87181.0,87164.0,0.00017208]
[1767060644252,0.00017208,87181.0,87165.0,0.01786955]
[1767060644447,0.0114841,87180.0,87166.0,0.01786955]
[1767060644646,0.0114841,87180.0,87167.0,0.01786955]
[1767060644847,0.0114841,87180.0,87168.0,0.01786955]
[1767060645049,0.0114841,87180.0,87169.0,0.01786955]
[1767060645249,0.0114841,87180.0,87164.0,0.00017208]
[1767060645250,0.0114841,87180.0,87170.0,5e-08]
[1767060645449,0.0114845,87177.0,87164.0,0.00017208]
[1767060647053,0.0114845,87177.0,87152.0,0.0114876]
[1767060647258,0.0114845,87177.0,87155.0,0.0114873]
[1767060647760,0.0114845,87177.0,87156.0,0.15512]
[1767060650864,0.0114845,87177.0,87155.0,0.0114873]
[1767060651056,0.01165598,87181.0,87156.0,0.15512]
[1767060651254,0.0114844,87178.0,87156.0,0.15512]
[1767060651459,0.0114841,87180.0,87157.0,0.011487]
[1767060652462,0.0114845,87177.0,87156.0,0.15512]
[1767060652962,0.00017208,87181.0,87157.0,0.15512]
[1767060652963,0.02446483,87176.0,87157.0,0.15512]
[1767060653149,0.011485,87173.0,87158.0,0.05752]
[1767060653347,0.011485,87173.0,87159.0,0.0976]
[1767060653553,0.0114848,87174.0,87151.0,0.02853991]
[1767060653849,0.0114863,87163.0,87138.0,0.0114895]
[1767060654156,0.00017208,87159.0,87134.0,0.1666101]
[1767060654356,0.0976,87158.0,87134.0,0.1666101]
[1767060654548,0.0976,87158.0,87134.0,0.21135103]
[1767060654760,0.0976,87158.0,87134.0,0.1666101]
[1767060655063,0.109087,87158.0,87134.0,0.15512]
[1767060655255,0.0976,87158.0,87135.0,0.05756]
[1767060655855,0.0114871,87157.0,87135.0,0.05756]
[1767060656067,0.0976,87158.0,87136.0,0.0114898]
[1767060656360,0.0976,87158.0,87135.0,0.05756]
[1767060656964,0.0976,87158.0,87134.0,0.01149]
[1767060657166,0.0976,87158.0,87135.0,0.05756]
[1767060657354,0.0976,87158.0,87140.0,0.0114892]
[1767060657761,0.0114821,87195.0,87141.0,0.15516]
[1767060657971,0.42398058,87194.0,87149.0,0.011488]
[1767060658266,0.15660303,87190.0,87150.0,0.05756]
[1767060658466,0.011485,87173.0,87150.0,0.05756]
[1767060658765,0.011485,87173.0,87141.0,0.0976]
[1767060658766,0.0114857,87168.0,87141.0,0.0114891]
[1767060659058,0.0114857,87168.0,87153.0,2.08e-06]
[1767060659457,0.0114861,87164.0,87153.0,2.08e-06]
[1767060660759,0.00017208,87170.0,87153.0,2.08e-06]
[1767060660760,0.0114855,87169.0,87153.0,2.08e-06]
[1767060660964,0.0976,87169.0,87153.0,2.08e-06]
[1767060664556,0.00017208,87170.0,87153.0,2.08e-06]
[1767060664770,0.02473702,87169.0,87153.0,2.08e-06]
[1767060664970,0.02473702,87168.0,87153.0,2.08e-06]
[1767060665163,0.02473702,87167.0,87153.0,2.08e-06]
[1767060665464,0.00017208,87170.0,87153.0,2.08e-06]
[1767060665665,0.02473966,87169.0,87154.0,0.0114874]
[1767060665868,0.00017208,87170.0,87153.0,2.08e-06]
[1767060666068,0.0114864,87162.0,87153.0,2.08e-06]
[1767060666366,0.0114858,87167.0,87153.0,2.08e-06]
[1767060666669,0.02474108,87166.0,87153.0,2.08e-06]
[1767060666862,0.05756,87168.0,87153.0,2.08e-06]
[1767060667166,0.0247405,87167.0,87153.0,2.08e-06]
[1767060667470,0.011486,87165.0,87153.0,2.08e-06]
[1767060667674,0.05756,87168.0,87153.0,2.08e-06]
[1767060667675,0.0247405,87164.0,87153.0,2.08e-06]
[1767060667857,0.0114862,87164.0,87153.0,2.08e-06]
[1767060668057,0.011486,87165.0,87153.0,2.08e-06]
[1767060668372,0.02474402,87164.0,87153.0,2.08e-06]
[1767060668674,0.02474733,87163.0,87153.0,2.08e-06]
[1767060668878,0.011486,87165.0,87153.0,2.08e-06]
[1767060669064,0.02474732,87164.0,87153.0,2.08e-06]
[1767060669378,0.02475184,87163.0,87153.0,2.08e-06]
[1767060669570,0.0114863,87163.0,87153.0,2.08e-06]
[1767060669762,0.0114867,87160.0,87153.0,2.08e-06]
[1767060671176,0.0114862,87164.0,87153.0,2.08e-06]
[1767060671378,0.02476039,87163.0,87153.0,2.08e-06]
[1767060671574,0.02476039,87162.0,87153.0,2.08e-06]
[1767060671881,0.0114862,87164.0,87153.0,2.08e-06]
[1767060672075,0.0247604,87163.0,87153.0,2.08e-06]
[1767060672376,0.0247604,87162.0,87153.0,2.08e-06]
[1767060672568,0.02476408,87161.0,87153.0,2.08e-06]
[1767060672768,0.0114862,87164.0,87153.0,2.08e-06]
[1767060673074,0.02476407,87163.0,87153.0,2.08e-06]
[1767060673275,0.02476407,87162.0,87153.0,2.08e-06]
[1767060673474,0.02476407,87161.0,87153.0,2.08e-06]
[1767060673675,0.0114862,87164.0,87153.0,2.08e-06]
[1767060673883,0.02476628,87163.0,87153.0,2.08e-06]
[1767060674066,0.02476628,87162.0,87153.0,2.08e-06]
[1767060674267,0.02476628,87161.0,87153.0,2.08e-06]
[1767060674563,0.0114862,87164.0,87153.0,2.08e-06]
[1767060674762,0.02476917,87163.0,87153.0,2.08e-06]
[1767060674962,0.02476917,87162.0,87153.0,2.08e-06]
[1767060675168,0.02476917,87161.0,87153.0,2.08e-06]
[1767060675367,0.02476917,87160.0,87153.0,2.08e-06]
[1767060675678,0.02476917,87159.0,87153.0,2.08e-06]
[1767060675882,0.02476917,87158.0,87153.0,2.08e-06]
[1767060676079,0.02476917,87157.0,87153.0,2.08e-06]
[1767060676278,0.02476917,87156.0,87153.0,2.08e-06]
[1767060676582,0.02476917,87155.0,87153.0,2.08e-06]
[1767060676876,0.02476917,87154.0,87153.0,2.08e-06]
[1767060677269,0.03625497,87167.0,87153.0,2.08e-06]
[1767060677465,0.02476917,87166.0,87153.0,2.08e-06]
[1767060678679,0.02476917,87165.0,87153.0,2.08e-06]
[1767060678872,0.02476917,87164.0,87153.0,2.08e-06]
[1767060679072,0.02476917,87163.0,87153.0,2.08e-06]
[1767060679269,0.02476917,87162.0,87153.0,2.08e-06]
[1767060679469,0.02476917,87161.0,87153.0,2.08e-06]
[1767060679670,0.02476917,87160.0,87153.0,2.08e-06]
[1767060679880,0.02476917,87159.0,87153.0,2.08e-06]
[1767060680081,0.02476917,87158.0,87153.0,2.08e-06]
[1767060680276,0.02476917,87157.0,87153.0,2.08e-06]
[1767060680476,0.02476917,87156.0,87153.0,2.08e-06]
[1767060680678,0.02476917,87155.0,87153.0,2.08e-06]
[1767060680977,0.02476917,87154.0,87153.0,2.08e-06]
[1767060681177,0.02476917,87166.0,87153.0,2.08e-06]
[1767060682574,0.02476917,87165.0,87153.0,2.08e-06]
[1767060682877,0.02476917,87164.0,87153.0,2.08e-06]
[1767060683074,0.02476917,87163.0,87153.0,2.08e-06]
[1767060683374,0.02476917,87162.0,87153.0,2.08e-06]
[1767060683576,0.02476917,87161.0,87153.0,2.08e-06]
[1767060683777,0.02476917,87160.0,87153.0,2.08e-06]
[1767060684086,0.02476917,87159.0,87153.0,2.08e-06]
[1767060684286,0.02476917,87158.0,87153.0,2.08e-06]
[1767060684584,0.02476917,87157.0,87153.0,2.08e-06]
[1767060684787,0.0690457,87168.0,87153.0,2.08e-06]
[1767060685085,0.02480196,87167.0,87153.0,2.08e-06]
[1767060685284,0.02480196,87166.0,87153.0,2.08e-06]
[1767060685484,0.02480196,87165.0,87153.0,2.08e-06]
[1767060685686,0.02480196,87164.0,87153.0,2.08e-06]
[1767060685888,0.02480196,87163.0,87153.0,2.08e-06]
[1767060686078,0.02480196,87162.0,87153.0,2.08e-06]
[1767060686275,0.02480196,87161.0,87153.0,2.08e-06]
[1767060686486,0.09764,87178.0,87157.0,0.011487]
[1767060687085,0.05756,87183.0,87163.0,0.0114861]
[1767060687285,0.09764,87186.0,87164.0,0.1552]
[1767060687488,0.00017208,87184.0,87165.0,0.1552]
[1767060687787,0.05756,87198.0,87177.0,0.0114843]
[1767060687990,0.0114822,87194.0,87176.0,0.09764]
[1767060688183,0.0114822,87194.0,87175.0,0.09764]
[1767060688889,0.0114827,87190.0,87176.0,0.00017208]
[1767060689591,0.0114327,87190.0,87176.0,0.00017208]
[1767060691192,0.00017208,87193.0,87176.0,0.00017208]
[1767060692491,0.0114825,87192.0,87176.0,0.00012208]
[1767060693289,0.00017208,87193.0,87162.0,0.0114863]
[1767060693597,0.011484,87181.0,87163.0,0.15516]
[1767060693895,0.011484,87181.0,87163.0,0.05756]
[1767060694089,0.05586,87180.0,87163.0,0.05756]
[1767060694297,0.05603208,87180.0,87163.0,0.05773208]
[1767060695398,0.05603208,87180.0,87164.0,0.011486]
[1767060696297,0.05603208,87180.0,87163.0,0.05773208]
[1767060700302,0.05603208,87180.0,87164.0,0.0114861]
[1767060700498,0.05603208,87180.0,87170.0,0.15659764]
[1767060700699,0.05603208,87180.0,87164.0,0.0114861]
[1767060700997,0.05603208,87180.0,87170.0,0.15659764]
[1767060701198,0.05603208,87180.0,87164.0,0.0114861]
[1767060701498,0.05603208,87180.0,87170.0,0.15659764]
[1767060701699,0.05603208,87180.0,87170.0,0.25419764]
[1767060702202,0.05603208,87180.0,87170.0,0.0976]
[1767060702407,0.05603208,87180.0,87171.0,0.05756]
[1767060709618,0.15659764,87190.0,87171.0,0.05756]
[1767060709809,0.02451961,87189.0,87171.0,0.05756]
[1767060710011,0.02451961,87188.0,87171.0,0.05756]
[1767060710318,0.02451961,87187.0,87171.0,0.05756]
[1767060710516,0.02451961,87186.0,87171.0,0.05756]
[1767060710909,0.01165508,87188.0,87171.0,0.05756]
[1767060711218,0.02452484,87187.0,87171.0,0.05756]
[1767060711418,0.02452484,87186.0,87171.0,0.05756]
[1767060711613,0.02452484,87185.0,87171.0,0.05756]
[1767060711809,0.01165508,87188.0,87171.0,0.05756]
[1767060712012,0.02452999,87187.0,87171.0,0.05756]
[1767060712210,0.02452999,87186.0,87171.0,0.05756]
[1767060712419,0.02452999,87185.0,87171.0,0.05756]
[1767060712720,0.05422,87187.0,87171.0,0.05756]
[1767060712922,0.02453608,87186.0,87171.0,0.05756]
[1767060713214,0.02453608,87185.0,87171.0,0.05756]
[1767060713422,0.02453608,87184.0,87171.0,0.05756]
[1767060713615,0.05422,87187.0,87171.0,0.05756]
[1767060713816,0.02454338,87186.0,87171.0,0.05756]
[1767060714017,0.02454338,87185.0,87170.0,0.15659764]
[1767060714220,0.02454338,87184.0,87170.0,0.15659764]
[1767060714422,0.05422,87187.0,87171.0,0.05756]
[1767060714619,0.02455224,87186.0,87171.0,0.05756]
[1767060714917,0.02455224,87185.0,87171.0,0.05756]
[1767060715118,0.02455224,87184.0,87171.0,0.05756]
[1767060715319,0.02455224,87183.0,87171.0,0.05756]
[1767060715514,0.02455224,87182.0,87171.0,0.05756]
[1767060715719,0.05422,87187.0,87171.0,0.05756]
[1767060715918,0.02420022,87186.0,87171.0,0.05756]
[1767060716223,0.02420022,87185.0,87172.0,0.01788684]
[1767060716420,0.02420022,87184.0,87173.0,0.01788684]
[1767060716614,0.02420022,87183.0,87174.0,0.01788684]
[1767060716915,0.02420022,87182.0,87175.0,0.01788684]
[1767060717121,0.02420022,87181.0,87176.0,0.01788684]
[1767060717321,0.05422,87187.0,87171.0,0.05756]
[1767060717513,0.02422226,87186.0,87171.0,0.05756]
[1767060717713,0.02422226,87185.0,87171.0,0.05756]
[1767060718023,0.05422,87187.0,87171.0,0.05756]
[1767060718024,0.02422226,87184.0,87171.0,0.05756]
[1767060718321,0.02422226,87183.0,87171.0,0.05756]
[1767060718519,0.02422226,87182.0,87171.0,0.05756]
[1767060718722,0.02422226,87181.0,87171.0,0.05756]
[1767060718922,0.02422226,87180.0,87171.0,0.05756]
[1767060719126,0.05422,87187.0,87171.0,0.05756]
[1767060719422,0.00017208,87188.0,87177.0,0.15659764]
[1767060719624,0.05756,87199.0,87178.0,0.05756]
[1767060719826,0.0976,87201.0,87182.0,0.0114837]
[1767060720124,0.0976,87201.0,87190.0,0.15659764]
[1767060720322,0.05756,87204.0,87190.0,0.15659764]
[1767060720513,0.00017208,87206.0,87190.0,0.15659764]
[1767060720709,0.00017208,87206.0,87196.0,0.15659764]
[1767060721022,0.05756,87215.0,87197.0,0.05756]
[1767060721822,0.05773208,87215.0,87197.0,0.05756]
[1767060722124,0.00017208,87215.0,87200.0,0.15659764]
[1767060724918,0.15659764,87230.0,87205.0,0.15659764]
[1767060725128,0.15659764,87230.0,87210.0,0.15659764]
[1767060725424,0.07611666,87233.0,87210.0,0.15659764]
[1767060725617,0.06463956,87233.0,87210.0,0.15659764]
[1767060725812,0.05756,87233.0,87210.0,0.15659764]
[1767060726018,0.0114758,87243.0,87210.0,0.15659764]
[1767060726019,0.0976,87241.0,87220.0,0.15659764]
[1767060726222,0.0976,87241.0,87221.0,0.05756]
[1767060726522,0.0114767,87236.0,87221.0,0.05756]